[Event "Germany Countries-chT Youth 2022"]
[Site "Wiesbaden"]
[Date "2022.10.04"]
[Round "7"]
[White "Popist, Florian"]
[Black "Feidt, Jonas"]
[Result "1-0"]
[ECO "B13"]
[WhiteElo "2187"]
[BlackElo "1908"]
[Annotator "TA"]
[PlyCount "67"]
[EventDate "2022.09.28"]
[EventType "team-tourn"]
[EventRounds "7"]
[EventCountry "GER"]
[SourceTitle "playchess.com"]
[Source "ChessBase"]
[SourceQuality "1"]
[TimeControl "40/5400+30:1800+30"]

{[%evp 11,67,13,13,11,30,20,24,22,22,17,24,25,29,31,22,25,27,28,23,21,27,32,48,47,43,37,56,60,57,60,70,67,106,105,105,105,118,102,97,95,154,156,143,159,745,720,725,441,523,416,577,585,568,602,631,620,1026,884]} 1. e4 {[%emt 0:00:02]} c6 {[%emt 0:00:06]} 2. d4 {[%emt 0:00:05]} d5 {[%emt 0:00:06]} 3. exd5 {[%emt 0:00:06]} cxd5 {[%emt 0:00:05]} 4. Bd3 {[%emt 0:00:08]} Nc6 {[%emt 0:00:10]} 5. c3 {[%emt 0:00:05]} Qc7 {[%emt 0:00:06]} 6. Ne2 {[%emt 0:00:57]} Bg4 {[%emt 0:00:14]} 7. O-O {[%emt 0:00:21] B13: Caro-Kann: Exchange Variation and Panov-Botvinnik Attack.} Nf6 {[%emt 0:00:49]} 8. Qe1 {[%emt 0:00:41]} e6 {[%emt 0:00:31]} 9. Bg5 {[%emt 0:01:13] White has an edge.} Bxe2 {[%emt 0:07:10]} 10. Qxe2 {[%emt 0:00:09]} Bd6 {[%emt 0:04:20]} 11. g3 {[%emt 0:04:17]} h6 {[%emt 0:04:54]} 12. Be3 {[%emt 0:02:35]} O-O {[%emt 0:03:27]} 13. Nd2 {[%emt 0:03:05]} e5 {[%emt 0:10:43]} 14. dxe5 {[%emt 0:05:19]} Nxe5 {[%emt 0:01:56] [#]} 15. Nf3 $146 {[%emt 0:00:11]} ({Predecessor:} 15. Bf5 Rfe8 16. Rae1 Nc4 17. Nxc4 dxc4 18. Qf3 Bc5 19. Bf4 Qb6 20. Be5 Re7 21. Re2 {1-0 (79) Shuvalova,P (2441)-Charochkina,D (2344) Khanty-Mansiysk 2018}) 15... Rfe8 {[%emt 0:03:04]} 16. Nxe5 {[%emt 0:03:13]} Bxe5 {[%emt 0:05:22]} 17. Qf3 {[%emt 0:06:40]} Rad8 {[%emt 0:04:42]} 18. Rad1 {[%emt 0:07:24][%cal Ba1d1,Bd1d2,Bd2e2][%mdl 32]} (18. Bxa7 $2 b6 19. Bb5 Re7 20. Bxb6 Qxb6 $19) 18... Qa5 {[%emt 0:13:18]} 19. a3 {[%emt 0:04:19]} Qa4 {[%emt 0:14:47]} 20. Rfe1 {[%emt 0:05:59]} a6 {[%emt 0:11:14]} 21. Rd2 {[%emt 0:03:39]} Rd6 {[%emt 0:04:24]} 22. Rde2 {[%emt 0:04:52] Black must now prevent Bf4.} Ne4 {[%emt 0:04:42]} 23. Bc1 {[%emt 0:17:13][%cal Rd3e4]} Bf6 {[%emt 0:02:00]} 24. Kg2 {[%emt 0:05:11]} ({Don't play} 24. Bxe4 $6 Rxe4 25. Rxe4 dxe4 $11) 24... Rde6 {[%emt 0:01:39]} 25. c4 {[%emt 0:01:19]} Ng5 {[%emt 0:00:29]} (25... Nc5 $142) 26. Bxg5 {[%emt 0:02:58][%cal Bc1g5,Bg5f6,Bf6c3][%mdl 32]} Rxe2 {[%emt 0:01:00]} 27. Rxe2 $40 {[%emt 0:01:43][%mdl 128] White wants a kill.} Rxe2 $2 {[%emt 0:00:30] This move loses the game for Black.} (27... Bxg5 $16 28. Bc2 (28. Qxd5 Rxe2 29. Bxe2 Qc6 $16) 28... Qc6) 28. Bxf6 $18 {[%emt 0:01:20] [#] And now Qg4 would win.} ({Not} 28. Qxe2 hxg5 29. cxd5 g6 $14) 28... Re6 {[%emt 0:00:12]} 29. Bc3 {[%emt 0:00:55]} dxc4 {[%emt 0:00:40]} 30. Be4 {[%emt 0:01:48]} Qe8 {[%emt 0:02:01]} 31. Bxb7 {[%emt 0:00:56] This bishop pair is nice. White is clearly winning.} Rd6 {[%emt 0:00:43]} 32. Bd5 {[%emt 0:00:48]} Qd7 {[%emt 0:00:22]} 33. Bxc4 {[%emt 0:00:38]} g6 {[%emt 0:00:37]} 34. Qa8+ {[%emt 0:01:09] Weighted Error Value: White=0.24 (precise) /Black=0.27 (precise)} 1-0

[Event "Germany Countries-chT Youth 2022"]
[Site "Wiesbaden"]
[Date "2022.10.04"]
[Round "7"]
[White "Sidletskyi, Ivan"]
[Black "Koll, Linus"]
[Result "1/2-1/2"]
[ECO "B76"]
[WhiteElo "2184"]
[BlackElo "2060"]
[Annotator "TA"]
[PlyCount "81"]
[EventDate "2022.09.28"]
[EventType "team-tourn"]
[EventRounds "7"]
[EventCountry "GER"]
[SourceTitle "playchess.com"]
[Source "ChessBase"]
[SourceQuality "1"]
[TimeControl "40/5400+30:1800+30"]

{[%evp 22,81,47,46,38,37,64,39,67,13,79,31,126,84,96,6,15,5,16,18,47,31,39,14,18,3,11,7,43,35,103,0,0,0,0,0,0,0,0,0,0,0,0,0,0,0,0,0,0,0,0,-53,-51,-37,-22,-18,-15,-51,-60,-48,-33,-24]} 1. e4 {[%emt 0:01:23]} c5 {[%emt 0:00:03]} 2. Nf3 {[%emt 0:00:20]} d6 {[%emt 0:00:04]} 3. d4 {[%emt 0:00:36]} cxd4 {[%emt 0:00:05]} 4. Nxd4 {[%emt 0:00:15]} Nf6 {[%emt 0:00:04]} 5. Nc3 {[%emt 0:00:53]} g6 {[%emt 0:00:04]} 6. Be3 {[%emt 0:00:34]} Bg7 {[%emt 0:00:06]} 7. f3 {[%emt 0:00:57]} O-O {[%emt 0:00:06]} 8. Qd2 {[%emt 0:00:32]} Nc6 {[%emt 0:00:06]} 9. g4 {[%emt 0:00:41]} Be6 {[%emt 0:00:08]} 10. Nxe6 {[%emt 0:01:33]} fxe6 {[%emt 0:00:05]} 11. O-O-O {[%emt 0:01:39]} Ne5 {[%emt 0:00:15]} 12. Be2 {[%emt 0:00:30] Strongly threatening g5.} Qc8 {[%emt 0:00:05] B76: Sicilian Dragon: Yugoslav Attack, 9 g4 and 9 0-0-0.} 13. h4 {[%emt 0:01:02]} Nc4 {[%emt 0:01:48]} 14. Bxc4 {[%emt 0:04:08]} Qxc4 {[%emt 0:00:04] White is slightly better.} 15. h5 {[%emt 0:07:07] [#]} (15. Bd4 $14) 15... gxh5 $146 {[%emt 0:01:29] [#]} (15... Nd7 $11) ({Predecessor:} 15... b5 16. Kb1 Nd7 17. hxg6 hxg6 18. f4 b4 19. Ne2 Nf6 20. e5 dxe5 21. fxe5 Nxg4 {½-½ (35) Warakomski,T (2497)-Tomczak,M (2432) Katowice 2019}) 16. gxh5 {[%emt 0:18:56]} ({White should try} 16. Qh2 $1 $16) 16... b5 {[%emt 0:00:58]} (16... Nd7 $1 $14) 17. h6 {[%emt 0:11:38]} Bh8 {[%emt 0:00:15]} 18. Qd3 {[%emt 0:02:29]} (18. Kb1 $16) 18... Qxd3 $11 {[%emt 0:05:30]} (18... Nd7 {is more complex.} 19. f4 Bxc3 20. Rhg1+ Kf7) 19. cxd3 {[%emt 0:00:46]} a6 {[%emt 0:05:09]} 20. d4 {[%emt 0:04:23]} e5 {[%emt 0:26:39]} 21. dxe5 {[%emt 0:08:00]} dxe5 {[%emt 0:00:06]} 22. Ne2 {[%emt 0:04:19]} Kf7 {[%emt 0:01:18]} 23. Ng1 {[%emt 0:03:33]} Rac8+ {[%emt 0:03:41]} 24. Kb1 {[%emt 0:00:09]} Ne8 {[%emt 0:00:52]} 25. Nh3 {[%emt 0:03:52] And now Ng5+ would win.} Bf6 {[%emt 0:01:08] [#]} ({Black should play} 25... Nd6 $14) 26. Nf2 {[%emt 0:02:53] White is more active.} ({White must play} 26. f4 $1 $16 {[%cal Rf4e5]}) 26... Nd6 {[%emt 0:02:33]} 27. Ng4 {[%emt 0:05:20]} Ke6 {[%emt 0:02:38]} 28. Rh5 {[%emt 0:04:26]} Nc4 {[%emt 0:05:44]} 29. Bc1 {[%emt 0:00:53]} Rfd8 {[%emt 0:01:41]} 30. Rhh1 {[%emt 0:01:36]} Rxd1 {[%emt 0:08:18]} 31. Rxd1 {[%emt 0:00:08]} Nd6 {[%emt 0:04:42]} 32. Nf2 {[%emt 0:04:27]} Rg8 {[%emt 0:03:51]} 33. Nd3 $1 {[%emt 0:00:06]} Rg3 {[%emt 0:03:18]} 34. Nc5+ {[%emt 0:00:55]} Kf7 {[%emt 0:00:07]} 35. Rf1 {[%emt 0:02:26]} Bg5 {[%emt 0:02:30]} 36. f4 {[%emt 0:01:06]} (36. Nxa6 $11 Bxc1 37. Kxc1) 36... Bxf4 $15 {[%emt 0:01:11]} 37. Bxf4 {[%emt 0:00:29]} exf4 {[%emt 0:00:08]} 38. Rxf4+ {[%emt 0:00:23]} Kg6 {[%emt 0:00:27]} 39. e5 {[%emt 0:01:18]} Nf5 {[%emt 0:04:44]} 40. Nxa6 {[%emt 0:03:08]} Nxh6 {[%emt 0:03:41]} 41. Nc7 {[%emt 0:03:38] Weighted Error Value: White=0.23 (precise) /Black=0.15 (very precise)} 1/2-1/2

[Event "Germany Countries-chT Youth 2022"]
[Site "Wiesbaden"]
[Date "2022.10.04"]
[Round "7"]
[White "Geltz, Noah"]
[Black "Lange, Jannis"]
[Result "1-0"]
[ECO "B30"]
[WhiteElo "2142"]
[BlackElo "2085"]
[Annotator "TA"]
[PlyCount "85"]
[EventDate "2022.09.28"]
[EventType "team-tourn"]
[EventRounds "7"]
[EventCountry "GER"]
[SourceTitle "playchess.com"]
[Source "ChessBase"]
[SourceQuality "1"]
[TimeControl "40/5400+30:1800+30"]

{[%evp 10,85,21,23,66,54,44,41,55,43,79,73,69,62,85,62,114,104,110,96,95,85,83,71,68,0,117,108,130,123,133,124,193,195,204,208,197,199,229,218,316,276,260,265,331,277,324,278,330,278,278,278,271,0,268,266,299,289,372,372,366,356,360,360,529,537,519,477,514,512,507,502,672,649,649,649,710,672]} 1. e4 {[%emt 0:00:04]} c5 {[%emt 0:00:04]} 2. Nf3 {[%emt 0:00:09]} Nc6 {[%emt 0:00:08]} 3. Bc4 {[%emt 0:00:13]} g6 {[%emt 0:02:38]} 4. O-O {[%emt 0:02:11]} Bg7 {[%emt 0:00:10]} 5. c3 {[%emt 0:01:57][%cal Bc2c3,Bc3d4,Bd4d5][%mdl 32]} d6 {[%emt 0:07:07]} 6. d4 {[%emt 0:04:10]} cxd4 {[%emt 0:00:35] B27: Sicilian: 2 Nf3, unusual Black 2nd moves.} 7. cxd4 {[%emt 0:01:00]} (7. Nxd4 Nf6 $11) 7... Nf6 {[%emt 0:11:27]} 8. d5 {[%emt 0:04:08]} Nb8 {[%emt 0:01:14] White is slightly better.} 9. Nc3 {[%emt 0:02:22]} O-O {[%emt 0:00:26]} 10. h3 {[%emt 0:03:49]} Nbd7 {[%emt 0:02:59]} 11. Be3 {[%emt 0:11:17] White is more active.} Nb6 {[%emt 0:03:28] [#]} 12. Be2 $146 {[%emt 0:07:07]} ({Predecessor:} 12. Bb3 Bd7 13. a4 a5 14. Qe2 Rc8 15. Nd4 Be8 16. Ndb5 Nbd7 17. Bd4 Nc5 18. Bc2 {1-0 (40) Ankhchimeg,B (2123)-Oussedik,N (1594) Tromsoe 2014}) 12... Bd7 {[%emt 0:10:14]} (12... e6 $1 $14) 13. a4 $36 {[%emt 0:02:39][%cal Ba2a4,Ba4a5][%mdl 2080] White has strong initiative.} Rc8 {[%emt 0:07:22][%cal Oc8c3]} 14. Qb3 {[%emt 0:01:44]} Rxc3 {[%emt 0:14:04]} 15. bxc3 {[%emt 0:00:39] Strongly threatening a5.} (15. Qxc3 Nfxd5 16. Qb3 Nxe3 17. Qxe3 (17. fxe3 Bc6 $11) 17... Bxa4 $11) 15... Nxe4 {[%emt 0:00:08]} 16. Rfc1 {[%emt 0:19:23]} e6 {[%emt 0:04:32]} 17. Bd3 {[%emt 0:02:38]} ({White should try} 17. dxe6 $14 Bxe6 18. Qa3) 17... exd5 {[%emt 0:01:46] [#]} (17... Nc5 $1 $11 {remains equal.} 18. Bxc5 dxc5) 18. a5 $1 {[%emt 0:01:14]} Nc4 {[%emt 0:00:58]} 19. Bxc4 {[%emt 0:00:44]} (19. Bxa7 Qc8) 19... dxc4 {[%emt 0:00:15]} 20. Qxc4 {[%emt 0:01:07]} ({And not} 20. Qxb7 Nxc3 21. Re1 {[#]} (21. Nd4 $2 Bxd4 22. Bxd4 Ne2+ 23. Kh2 Nxd4 $19) 21... Ne2+ $1 22. Kf1 Bxa1 23. Rxa1 Nc3 $11) 20... d5 {[%emt 0:08:20]} (20... Nc5 $16 {was worth a try.}) 21. Qxd5 $18 {[%emt 0:01:07]} Bc6 {[%emt 0:09:22]} 22. Qxd8 {[%emt 0:00:54]} Rxd8 {[%emt 0:00:03]} 23. Bd4 {[%emt 0:01:09]} (23. Bxa7 Nxc3 24. Kh1 Ne2 $14) 23... Bh6 {[%emt 0:03:56]} 24. Re1 {[%emt 0:02:51] Threatens to win with Ne5.} ({Not} 24. Bxa7 Bxc1 25. Rxc1 Bb5 $14) 24... Nd2 {[%emt 0:00:38]} (24... f5 $142 25. Bxa7 Nxc3) 25. Nxd2 {[%emt 0:03:58]} Bxd2 {[%emt 0:00:04]} 26. Red1 {[%emt 0:00:33]} ({Less strong is} 26. Bxa7 Bxe1 27. Rxe1 f6 $14) 26... Bf4 {[%emt 0:01:27]} 27. Bxa7 {[%emt 0:01:08]} Re8 {[%emt 0:01:37]} 28. Bd4 {[%emt 0:01:54]} h5 {[%emt 0:01:06]} 29. Re1 {[%emt 0:03:45]} Ra8 {[%emt 0:00:45]} 30. Bf6 {[%emt 0:02:48]} Bc7 {[%emt 0:01:08]} 31. Bd4 $2 {[%emt 0:00:50]} (31. c4 $18) 31... Kf8 $2 {[%emt 0:02:32][%mdl 8192]} (31... Bf4 $1 $11 {and Black has nothing to worry.} 32. c4 Bd6) 32. Bc5+ {[%emt 0:00:54]} Kg7 {[%emt 0:00:15]} 33. Bb6 {[%emt 0:01:16]} Bd6 {[%emt 0:01:17]} 34. Rad1 {[%emt 0:00:18]} Bf4 {[%emt 0:00:54]} 35. Rd8 {[%emt 0:02:09]} Rxd8 {[%emt 0:01:07]} 36. Bxd8 {[%emt 0:00:05][%mdl 4096] Endgame KRB-KB} Bd2 {[%emt 0:00:13]} (36... Kf8 {was called for.} 37. c4 Bd2) 37. Rb1 {[%emt 0:00:09] White is clearly winning.} Be4 {[%emt 0:01:13]} 38. Rb3 {[%emt 0:00:55]} Bd5 {[%emt 0:02:21]} 39. Rb5 {[%emt 0:02:36]} Be4 {[%emt 0:00:26]} 40. Rb4 {[%emt 0:01:35]} Bc6 {[%emt 0:00:15]} 41. Rb6 {[%emt 0:30:10][%cal Ob6c6] And now Rxc6! would win.} Be4 {[%emt 0:30:06]} 42. Bf6+ {[%emt 0:00:16]} Kh6 {[%emt 0:01:48]} 43. h4 {[%emt 0:01:01] Weighted Error Value: White=0.20 (precise) /Black=0.44} 1-0

[Event "Germany Countries-chT Youth 2022"]
[Site "Wiesbaden"]
[Date "2022.10.04"]
[Round "7"]
[White "Besou, Hussain"]
[Black "Hagner, Bennet"]
[Result "0-1"]
[ECO "B96"]
[WhiteElo "2119"]
[BlackElo "2253"]
[Annotator "TA"]
[PlyCount "110"]
[EventDate "2022.09.28"]
[EventType "team-tourn"]
[EventRounds "7"]
[EventCountry "GER"]
[SourceTitle "playchess.com"]
[Source "ChessBase"]
[SourceQuality "1"]
[TimeControl "40/5400+30:1800+30"]

{[%evp 21,110,0,14,21,112,0,0,-62,-8,-21,-16,-23,-21,-117,-105,-107,-122,-122,-100,-154,-122,-176,-154,-185,-118,-170,-174,-225,-237,-222,-230,-234,-236,-216,-228,-441,-433,-364,-204,-207,-202,-202,-154,-151,-84,-69,-56,-59,-35,-42,-41,-46,-34,-41,-36,-117,-115,-238,-239,-239,-239,-239,-150,-306,-263,-340,-332,-478,-478,-501,-456,-390,-375,-696,-656,-866,-621,-610,-594,-664,-325,-377,-363,-1123,-1123,-1069,-1073,-12832,-12832,-961,-727]} 1. e4 {[%emt 0:00:04]} c5 {[%emt 0:00:07]} 2. Nf3 {[%emt 0:00:07]} d6 {[%emt 0:00:03]} 3. d4 {[%emt 0:00:06]} cxd4 {[%emt 0:00:04]} 4. Nxd4 {[%emt 0:00:07]} Nf6 {[%emt 0:00:05]} 5. Nc3 {[%emt 0:00:06]} a6 {[%emt 0:00:04]} 6. Bg5 {[%emt 0:00:15]} e6 {[%emt 0:00:08]} 7. f4 {[%emt 0:00:05]} Nbd7 {[%emt 0:00:08]} 8. Qf3 {[%emt 0:00:09]} Qc7 {[%emt 0:00:10]} 9. O-O-O {[%emt 0:00:10]} b5 {[%emt 0:00:07]} 10. Bd3 {[%emt 0:00:59]} Bb7 {[%emt 0:00:18]} 11. Rhe1 {[%emt 0:00:09]} Qb6 {[%emt 0:00:42]} 12. Bxf6 {[%emt 0:20:27] B96: Sicilian Najdorf: 6 Bg5 e6 7 f4, lines other than 7...Qb6 and 7...Be7.} gxf6 {[%emt 0:06:19] [#]} (12... Nxf6 $11 13. Qe3 b4) 13. Nce2 {[%emt 0:05:00]} (13. Nd5 $1 $16 {[%mdl 512]} Qc5 (13... Qa7 14. c3) 14. Nb3) 13... h5 $11 {[%emt 0:06:05] [#]} 14. c3 $146 {[%emt 0:07:37]} ({Better is} 14. Qh3 $11) ({Predecessor:} 14. f5 e5 15. Nb3 a5 16. Kb1 a4 17. Nd2 a3 18. b4 Rc8 19. c3 Ke7 20. Nb3 {0-1 (33) Bon,M (2413)-Bellahcene,B (2514) Tremblay en France 2022}) 14... Nc5 {[%emt 0:10:15]} (14... f5 $15) 15. f5 {[%emt 0:02:53]} e5 {[%emt 0:01:37]} 16. Nc2 {[%emt 0:00:20]} a5 {[%emt 0:05:26]} 17. Ne3 {[%emt 0:13:20]} (17. Kb1 $11 {keeps the balance.}) 17... Bh6 $17 {[%emt 0:03:50]} 18. Kb1 {[%emt 0:00:36]} Bxe3 {[%emt 0:17:08]} 19. Qxe3 {[%emt 0:00:09]} Ke7 {[%emt 0:00:04]} 20. Bc2 {[%emt 0:06:49]} (20. Ng3 $142) 20... Rhg8 $36 {[%emt 0:02:52][%mdl 2048] Keeping White busy.} 21. Qf3 {[%emt 0:01:07]} (21. Ng3 $17) 21... Rg4 {[%emt 0:01:06][%cal Rc5e4]} 22. Ng3 {[%emt 0:03:23]} Rag8 {[%emt 0:01:28]} (22... b4 $19 23. Ka1 bxc3 24. bxc3 a4) 23. Nxh5 {[%emt 0:00:56]} (23. Re2 $17) 23... Rxg2 $19 {[%emt 0:02:03]} 24. Re2 {[%emt 0:01:53]} (24. Ng3 $142 Rxh2 25. Nf1) 24... Rxe2 {[%emt 0:08:12]} 25. Qxe2 {[%emt 0:00:04]} b4 $1 {[%emt 0:00:07]} 26. cxb4 {[%emt 0:06:51]} axb4 {[%emt 0:02:55]} (26... Qxb4 27. a3 Qb6 28. Ng3 $15) 27. Qe3 {[%emt 0:02:40]} Rh8 {[%emt 0:05:21]} 28. Qf3 {[%emt 0:02:23]} (28. Ng3 {was the only defense.}) 28... b3 {[%emt 0:01:22]} 29. axb3 {[%emt 0:00:30]} Qa6 {[%emt 0:09:25]} (29... Na6 $142 {...Nb4 is the strong threat.} 30. b4 Nxb4) 30. Ng3 {[%emt 0:03:29]} Ra8 $1 {[%emt 0:00:30][%csl Ga8][%cal Ra6a1]} (30... Rxh2 31. b4 Nd7 32. Nf1 $15) 31. Kc1 {[%emt 0:00:07][%cal Bb1c1,Bc1d2,Bd2e3,Be3f3][%mdl 32]} Qa1+ {[%emt 0:05:04][%mdl 64] Deflection} 32. Kd2 {[%emt 0:00:09] [#]} Qxb2 {[%emt 0:00:06] Black has more active pieces.} ({Black should play} 32... Qa5+ $1 33. Qc3 Qb6) 33. Qc3 $17 {[%emt 0:00:08]} Qa2 {[%emt 0:00:08] Hoping for ...Bxe4.} 34. Ke3 {[%emt 0:01:13]} Qa7 {[%emt 0:06:35] ( -> ...Nxe4+)} (34... Qa6 $5 {[%cal Ra8c8]} 35. b4 Nd7 $17) 35. Kf3 {[%emt 0:00:24]} Rh8 {[%emt 0:00:45][%cal Ba8h8,Bh8h4,Bh4f4][%mdl 32]} 36. b4 {[%emt 0:01:40]} (36. Qd2 d5 37. Kg2 (37. exd5 Rh4 $17) 37... d4 $17) 36... Nd7 {[%emt 0:00:08]} 37. Qd2 {[%emt 0:01:22]} Qb6 {[%emt 0:00:26]} 38. Bb3 {[%emt 0:02:01]} (38. Kg4 $15) 38... Rh4 {[%emt 0:00:58] White must now prevent ...Nf8. Dancing on a razor blade.} 39. Bc2 {[%emt 0:02:40] [#]} (39. b5 $17) 39... Nf8 $1 $19 {[%emt 0:04:31]} 40. Qe3 {[%emt 0:02:26]} Rf4+ {[%emt 0:02:15]} ({But not} 40... Qxb4 41. Rb1 Bxe4+ 42. Nxe4 (42. Bxe4 Qc4 $18) 42... Rh3+ 43. Ng3 $18) 41. Ke2 {[%emt 0:30:07]} Qxb4 {[%emt 0:04:29] aiming for ...Nd7.} 42. Bd3 $2 {[%emt 0:00:00] White does not recover from this.} (42. Rb1 $17 Qc4+ 43. Qd3) 42... Qa5 {[%emt 0:03:47] Strongly threatening ...Nd7.} 43. Qd2 {[%emt 0:00:00]} Qa4 {[%emt 0:01:23]} 44. Qe3 {[%emt 0:00:00]} (44. Qc3 $142 Qa7 45. Rf1) 44... Nd7 {[%emt 0:02:30][%cal Bf8d7,Bd7c5,Bc5b3][%mdl 32] And now ...Nc5 would win.} 45. Rc1 {[%emt 0:00:00]} Ba6 {[%emt 0:02:45]} ({Inferior is} 45... Nc5 46. Rxc5 dxc5 47. Qxc5+ Kd8 48. Qd6+ Qd7 49. Qxf6+ Qe7 50. Qb6+ Kc8 51. h3 $17) 46. Bxa6 {[%emt 0:00:00]} Qxa6+ {[%emt 0:00:08]} 47. Kd2 $2 {[%emt 0:00:00]} (47. Kd1) 47... Nc5 {[%emt 0:00:38]} 48. Rc2 {[%emt 0:00:00]} Qa5+ {[%emt 0:03:31]} 49. Ke2 {[%emt 0:00:00]} Qb5+ {[%emt 0:00:23]} 50. Kd2 {[%emt 0:00:00]} Qb4+ {[%emt 0:02:17]} (50... Rh4 $142 51. Kd1 Kf8) 51. Kd1 {[%emt 0:00:00]} Qa4 {[%emt 0:01:01][%cal Rc5e4]} 52. Kc1 $2 {[%emt 0:00:00]} (52. Qc3) 52... Nb3+ {[%emt 0:01:55] Black is clearly winning.} 53. Kb2 {[%emt 0:00:00]} Nd4 {[%emt 0:00:36]} 54. Rc7+ {[%emt 0:00:00]} Kd8 {[%emt 0:00:46]} 55. Rc3 {[%emt 0:00:00]} Qb4+ {[%emt 0:00:40] Weighted Error Value: White=0.82/Black=0.34} 0-1

[Event "Germany Countries-chT Youth 2022"]
[Site "Wiesbaden"]
[Date "2022.10.04"]
[Round "7"]
[White "Hassemeier, Mika"]
[Black "Nied, Pascal"]
[Result "0-1"]
[ECO "D35"]
[WhiteElo "2095"]
[BlackElo "2131"]
[Annotator "TA"]
[PlyCount "94"]
[EventDate "2022.09.28"]
[EventType "team-tourn"]
[EventRounds "7"]
[EventCountry "GER"]
[SourceTitle "playchess.com"]
[Source "ChessBase"]
[SourceQuality "1"]
[TimeControl "40/5400+30:1800+30"]

{[%evp 20,94,19,19,21,18,23,20,17,-18,-39,-38,-33,-29,-18,-37,-14,-16,0,-31,0,17,12,0,0,-15,-22,-37,0,-25,18,-30,0,-32,-25,-136,0,0,0,-272,-271,-272,-265,-349,-349,-349,-349,-349,-347,-349,-346,-336,-220,-280,-280,-280,-280,-280,-262,-433,-424,-417,-417,-475,-493,-1121,-1184,-1177,-1121,-1150,-1132,-1096,-1075,-4714,-4710,-2118,-1847]} 1. d4 {[%emt 0:00:01]} d5 {[%emt 0:00:05]} 2. c4 {[%emt 0:00:07]} e6 {[%emt 0:00:04]} 3. Nc3 {[%emt 0:00:08]} Nf6 {[%emt 0:00:05]} 4. cxd5 {[%emt 0:00:08]} exd5 {[%emt 0:00:05]} 5. Bg5 {[%emt 0:00:11]} c6 {[%emt 0:00:06]} 6. e3 {[%emt 0:00:12]} Bd6 {[%emt 0:00:07]} 7. Bd3 {[%emt 0:01:17]} O-O {[%emt 0:00:07]} 8. Qc2 {[%emt 0:01:16]} h6 {[%emt 0:00:06]} 9. Bh4 {[%emt 0:00:10]} Re8 {[%emt 0:00:07]} 10. Nge2 {[%emt 0:01:50]} Nbd7 {[%emt 0:00:09]} 11. h3 {[%emt 0:04:39]} b5 {[%emt 0:02:04][%cal Bb7b5,Bb5b4][%mdl 32] D36: Queen's Gambit Declined: Exchange Variation: Main line (5 Bg5 c6 6 Qc2).} 12. O-O {[%emt 0:03:48]} Bb7 {[%emt 0:15:19]} 13. Bg3 {[%emt 0:12:35]} Bf8 {[%emt 0:00:26] [#] The position is equal.} 14. a4 $146 {[%emt 0:11:51]} ({Predecessor:} 14. Rad1 a6 15. Nc1 Qb6 16. Nb3 Rac8 17. Qb1 a5 18. Rfe1 a4 19. Nc1 Qa5 20. a3 {½-½ (74) Jovanic,O (2516)-Rogic,D (2467) Mali Losinj 2021}) 14... b4 {[%emt 0:07:29]} 15. Nb1 {[%emt 0:05:46]} Rc8 {[%emt 0:17:23]} 16. Nd2 c5 17. dxc5 {[%emt 0:10:44]} Nxc5 {[%emt 0:02:21][%cal Od5d4]} 18. Bf5 {[%emt 0:02:17]} Ne6 {[%emt 0:03:52]} 19. Qb1 {[%emt 0:04:07]} Bd6 {[%emt 0:19:44]} (19... Ne4 $15 20. Nxe4 dxe4) 20. Bxd6 $11 {[%emt 0:05:07]} Qxd6 {[%emt 0:00:05]} 21. Nb3 {[%emt 0:04:05]} Ba6 {[%emt 0:07:42]} 22. Bd3 {[%emt 0:05:40]} Bc4 {[%emt 0:06:00]} 23. Nbd4 {[%emt 0:01:46]} Nc5 {[%emt 0:00:27][%cal Be6c5,Bc5e4,Be4c3,Bc3d1][%mdl 32]} 24. Bf5 {[%emt 0:02:29]} Nfe4 {[%emt 0:06:38]} 25. Rd1 {[%emt 0:09:05] Prevents Nd2.} (25. Bxc8 $142 Rxc8 26. Qd1) 25... Rcd8 {[%emt 0:01:14][%cal Oe4f2]} 26. Bxe4 {[%emt 0:05:38]} Nxe4 {[%emt 0:04:17]} 27. b3 {[%emt 0:02:12]} (27. Nf4 $11) 27... Ba6 {[%emt 0:02:46] Black is much more active.} (27... Bxe2 $17 28. Nxe2 Qf6) 28. Qb2 {[%emt 0:01:12] Prevents Nc3.} Qf6 {[%emt 0:00:50]} 29. f3 {[%emt 0:00:42][%mdl 8192] [#] White is now going downhill.} (29. Nf4 $11) 29... Bxe2 $19 {[%emt 0:00:14]} 30. Qxe2 {[%emt 0:00:19]} Nc3 {[%emt 0:00:10][%csl LRd1,LRe2]} 31. Qd3 {[%emt 0:00:28]} Nxd1 {[%emt 0:00:20]} 32. Rxd1 {[%emt 0:00:08]} Rc8 {[%emt 0:00:43]} 33. Ne2 {[%emt 0:02:49]} Qe5 {[%emt 0:00:32]} 34. Kf2 {[%emt 0:00:37]} Rc7 {[%emt 0:01:28]} 35. Qd4 {[%emt 0:01:17]} Qe7 {[%emt 0:03:08]} 36. Nf4 {[%emt 0:00:35]} Rc2+ {[%emt 0:00:56]} 37. Rd2 {[%emt 0:00:18]} Rxd2+ {[%emt 0:00:29]} 38. Qxd2 {[%emt 0:00:06][%mdl 4096] Endgame KQR-KQN} Qc5 {[%emt 0:00:54]} 39. Nd3 $2 {[%emt 0:01:16] [#]} (39. Ne2) 39... Qc3 {[%emt 0:00:19]} 40. Qxc3 {[%emt 0:00:11]} bxc3 {[%emt 0:00:02] KR-KN} 41. Nc1 {[%emt 0:31:58]} f5 {[%emt 0:06:43][%cal Of5f4] Black is clearly winning.} 42. g4 {[%emt 0:00:00]} (42. g3 $142) 42... f4 {[%emt 0:01:41]} 43. exf4 {[%emt 0:00:00]} a5 {[%emt 0:00:23] aiming for ...d4.} 44. f5 {[%emt 0:00:00]} d4 {[%emt 0:00:45][%cal Bd5d4,Bd4d3,Bd3d2][%mdl 32]} 45. h4 {[%emt 0:00:00]} Kf7 {[%emt 0:01:13]} 46. Ne2 {[%emt 0:00:00]} d3 {[%emt 0:00:37]} 47. Nxc3 {[%emt 0:00:00]} d2 {[%emt 0:00:05] Weighted Error Value: White=0.59/Black=0.15 (very precise)} 0-1